Cogmind - Beta 11.2 @@@ ROGUE MODE // 2023.02.12 @ 17:21:29 // Winter2022/Polymind Player: ArabianSandBoa Result: Destroyed by G-47 Trooper with Particle Gun Performance ------------- Evolutions (0) 0 Regions Visited (2) 400 Robots Destroyed (63) 315 Value Destroyed (993) 993 Prototype IDs (0) 0 Alien Tech Used (0) 0 Bonus (2073) 2073 TOTAL SCORE: 3151 Bonus ------- Polymind Skill 2080 High Alert Combat Kills 8 Friendly Fire -15 Cogmind --------- Core Integrity 0/250 Matter 0/0 Energy 100/100 System Corruption 1% Temperature Cool (9) Movement Walking (120) Location -10/Mines Parts ------- > --- POWER (1) -------- Light Angular Momentum Engine > --- PROPULSION (2) --- Carbon-fiber Leg Carbon-fiber Leg > --- UTILITY (2) ------ Improved Heat Sink Improved Heat Sink > --- WEAPON (1) ------- Beamcaster > --- INVENTORY (1) ---- (None) Peak State ------------ > --- POWER ------------ Light Angular Momentum Engine > --- PROPULSION ------- Carbon-fiber Leg Carbon-fiber Leg > --- UTILITY ---------- Improved Heat Sink Improved Heat Sink > --- WEAPON ----------- Beamcaster > --- INVENTORY -------- (None) [Rating: 22] Favorites ----------- Power Light Ion Engine Engine Light Ion Engine Power Core Light Nuclear Core Propulsion Wheel Leg Aluminum Leg Wheel Wheel Hover Unit Backup Propulsion I Utility Improved Terrain Scanner Device Improved Terrain Scanner Processor Machine Analyzer Weapon Mining Laser Energy Gun Particle Gun Special Weapon Mining Laser Build | -11 -10 -10 ------- Run | Scr Mat Min Slots Evolved . | . . . Power . | . . . Propulsion . | . . . Utility . | . . . Weapon . | . . . Parts Attached . | . . . Power . | . . . Engine . | . . . Core . | . . . Reactor . | . . . Propulsion . | . . . Treads . | . . . Leg . | . . . Wheel . | . . . Hover . | . . . Flight . | . . . Utility . | . . . Device . | . . . Storage . | . . . Processor . | . . . Hackware . | . . . Protection . | . . . Artifact . | . . . Weapon . | . . . Energy Gun . | . . . Energy Cannon . | . . . Ballistic Gun . | . . . Ballistic Cannon . | . . . Launcher . | . . . Special Weapon . | . . . Impact Weapon . | . . . Slashing Weapon . | . . . Piercing Weapon . | . . . Special Melee Weapon . | . . . Unidentified Prototypes . | . . . Parts Lost 4 | . 4 . Power 1 | . 1 . Propulsion 2 | . 2 . Utility . | . . . Weapon 1 | . 1 . Highest Loss Streak 2 | . 2 . To Critical Strikes . | . . . Average Slot Usage (%) 89 | . 87 100 Engine 12 | . 12 14 Core 4 | . 4 3 Leg 21 | . 18 35 Wheel 3 | . 4 . Hover 5 | . 7 . Device 22 | . 20 28 Energy Gun 17 | . 17 17 Naked Turns 12 | . 4 8 Heaviest Build 16 | 6 9 16 Greatest Support 30 | 20 20 30 Greatest Overweight (x) . | . . . Average Overweight (x) . | . . . Largest Inventory Capacity 10 | . 10 1 Average Capacity . | . 1 . Most Carried 10 | . 10 . Average Carried . | . . . Final Capacity 1 | . 1 1 Final Carried . | . . . Class Distribution -------------------- 90% | Grunt 4% | Mechanic 4% | Tunneler Dominant Class ---------------- Grunt | -10/Materials Grunt | -10/Mines Resources | -11 -10 -10 ----------- Run | Scr Mat Min Matter Collected . | . . . Remotely . | . . . Salvage Created 1266 | 25 1183 58 Parts 109 | 9 88 12 Haulers Intercepted 1 | . 1 . Recyclers Shooed . | . . . Parts Field Recycled . | . . . Retrieved Matter . | . . . Parts Self-Destructed . | . . . Prevented . | . . . Kills | -11 -10 -10 ------- Run | Scr Mat Min Combat Hostiles Destroyed 23 | . 19 4 Guns 23 | . 19 4 Classes Destroyed 10 | 3 7 . Worker 17 | 4 13 . Builder 4 | . 4 . Tunneler 10 | 8 2 . Hauler 1 | . 1 . Recycler 3 | 1 2 . Mechanic 1 | . 1 . Operator 1 | . 1 . Watcher 3 | . 3 . Swarmer 3 | . 3 . Grunt 20 | . 16 4 Best Kill Streak 5 | 1 5 2 Combat Bots Only 3 | . 3 2 Max Kills in Single Turn 1 | 1 1 1 Gunslinging . | . . . Exploded . | . . . Melee . | . . . Uniques/NPCs Destroyed . | . . . Combat | -11 -10 -10 -------- Run | Scr Mat Min Damage Taken 673 | . 461 212 Core 253 | . 122 131 Absorbed by Shields . | . . . Core Remaining (%) 100 | 100 . . Volleys Fired 213 | 50 152 11 Largest 1 | 1 1 1 Hottest 100 | 100 100 75 Shots Fired 215 | 50 154 11 Gun 164 | . 153 11 Cannon . | . . . Launcher . | . . . Special 51 | 50 1 . Kinetic . | . . . Thermal 215 | 50 154 11 Explosive . | . . . Electromagnetic . | . . . Robot Hit Streak 12 | 5 12 7 Robot Miss Streak 4 | 3 4 2 Penetration Max . | . . . Secondary Targets . | . . . Shots Hit Robots 145 | 28 108 9 Core Hits 71 | 12 54 5 Critical Kills . | . . . Critical Parts Destroyed . | . . . Critical Strikes 4 | . 3 1 Burn 4 | . 3 1 Melee Attacks . | . . . Impact . | . . . Slashing . | . . . Piercing . | . . . Sneak Attacks . | . . . Combat Hostiles . | . . . Follow-up Attacks . | . . . Damage Inflicted 2622 | 704 1720 198 Guns 1918 | . 1720 198 Cannons . | . . . Explosions . | . . . Melee . | . . . Ramming . | . . . Kinetic . | . . . Thermal 2622 | 704 1720 198 Explosive . | . . . Electromagnetic . | . . . Impact . | . . . Slashing . | . . . Piercing . | . . . Highest Corruption 1 | . 1 1 Average Corruption 1 | . 1 1 Corruption Purged . | . . . Corruption Blocked . | . . . Effects 9 | . 4 5 Message Errors 2 | . 1 1 Energy Discharges 2 | . . 2 Data Loss (minor) 1 | . . 1 Data Loss (major) 2 | . 1 1 Misfires 2 | . 2 . Overload Shots . | . . . Overflow Damage 35 | 35 . . Projectiles 35 | 35 . . Explosions . | . . . Melee . | . . . Knockbacks . | . . . Impact . | . . . Kinetic . | . . . Secondary . | . . . Self-Inflicted Damage . | . . . Shots . | . . . Rammed . | . . . Targets Rammed . | . . . Kicked . | . . . Crushed . | . . . Highest Temperature 345 | 345 80 161 Average Temperature 73 | 77 22 80 Received Heat Transfer 342 | . 219 123 Effects 10 | 10 . . Energy Bleed 3 | 3 . . Interference 7 | 7 . . Siege Activations . | . . . Robots Corrupted . | . . . Combat Hostiles . | . . . Parts Fried . | . . . Impact Corruptions . | . . . Robots Melted . | . . . Combat Hostiles . | . . . Parts Melted 10 | 1 9 . Heat Transferred 5932 | 1400 4125 407 Parts Sabotaged . | . . . Parts Stolen . | . . . Parts Stripped . | . . . Power Chain Reactions . | . . . Missiles Intercepted . | . . . Alert | -11 -10 -10 ------- Run | Scr Mat Min Peak Influence 429 | 30 429 237 Initial 162 | . . 162 Average 73 | 1 270 167 Maximum Alert Level 2 | . 2 1 Low Security (%) 79 | 100 24 49 Level 1 18 | . 66 50 Level 2 2 | . 9 . Level 3 . | . . . Level 4 . | . . . Level 5 . | . . . High Security . | . . . Max Security . | . . . Squads Dispatched 8 | . 8 . Investigation 6 | . 6 . Extermination . | . . . Reinforcement 2 | . 2 . Assault . | . . . Garrison . | . . . Intercept . | . . . Searches Triggered . | . . . Construction Impeded . | . . . Haulers Reinforced . | . . . Active Scanning Responses . | . . . Cargo Convoy Interrupts . | . . . Stealth | -11 -10 -10 --------- Run | Scr Mat Min Distress Signals 2 | . 2 . Communications Jammed . | . . . Distress Signals . | . . . Times Spotted 57 | . 46 11 Peak Tracking Total 7 | . 7 2 Tactical Retreats 8 | . 7 1 Traps | -11 -10 -10 ------- Run | Scr Mat Min Traps Triggered 2 | . 2 . Indirectly . | . . . Trap Hack Attempts . | . . . Triggered . | . . . Disarmed . | . . . Reprogrammed . | . . . Reused . | . . . Traps Extracted . | . . . Installed . | . . . Triggered . | . . . Machines | -11 -10 -10 ---------- Run | Scr Mat Min Machines Disabled 4 | . 4 . Max in Single Turn 1 | . 1 . Machines Sabotaged . | . . . Garrisons Compromised . | . . . Overloaded Fab Kills . | . . . Hacking | -11 -10 -10 --------- Run | Scr Mat Min Machines Accessed 9 | . 8 1 Terminals 5 | . 5 . Fabricators . | . . . Repair Stations 1 | . 1 . Recycling Units 2 | . 2 . Scanalyzers . | . . . Garrison Access . | . . . Total Hacks 20 | . 19 1 Successful 14 | . 13 1 Failed 6 | . 6 . Catastrophic 3 | . 3 . Database Lockouts . | . . . Manual 19 | . 19 . Terminals 16 | . 16 . Fabricators . | . . . Repair Stations 1 | . 1 . Recycling Units 2 | . 2 . Scanalyzers . | . . . Garrison Access . | . . . Terminal Hacks 4 | . 3 1 Robot Analysis 2 | . 2 . Open Door 1 | . . 1 Reprogram Traps 1 | . 1 . Fabricator Hacks . | . . . Repair Station Hacks 1 | . 1 . Refit 1 | . 1 . Recycling Unit Hacks . | . . . Scanalyzer . | . . . Garrison Access Hacks . | . . . Unauthorized Hacks 9 | . 9 . Terminals 7 | . 7 . Assimilate 1 | . 1 . Botnet 5 | . 5 . Detonate 1 | . 1 . Fabricators . | . . . Repair Stations . | . . . Recycling Units 2 | . 2 . Tunnel 2 | . 2 . Scanalyzers . | . . . Garrison Access . | . . . Data Cores Recovered . | . . . Used . | . . . Hacking Detections 5 | . 5 . Full Trace Events 5 | . 5 . Feedback Events 1 | . 1 . Corruption 1 | . 1 . Feedback Blocked . | . . . Robot Schematics Acquired . | . . . Robots Built . | . . . Authchips . | . . . Time . | . . . Total Robot Build Rating . | . . . Part Schematics Acquired . | . . . Parts Built . | . . . Authchips . | . . . Time . | . . . Total Part Build Rating . | . . . Parts Repaired . | . . . Time . | . . . Parts Recycled . | . . . Recycled Matter . | . . . Retrieved Matter . | . . . Retrieved Components . | . . . Parts Scanalyzed . | . . . Part Schematics Acquired . | . . . Parts Damaged . | . . . Bothacking | -11 -10 -10 ------------ Run | Scr Mat Min Used RIF Installer . | . . . Robots Hacked 4 | . 3 1 Non-combat 1 | . 1 . Combat 3 | . 2 1 Robot Hacks Applied 4 | . 3 1 find_station 1 | . 1 . find_shortcuts 3 | . 2 1 Relay Couplers Released . | . . . Fabnet Peak Effective % . | . . . Robots Rewired . | . . . Allies Hacked . | . . . Hacks Repelled . | . . . Allies | -11 -10 -10 -------- Run | Scr Mat Min Total Allies 1 | . 1 . Largest Group 1 | . 1 . Highest-Rated Group 10 | . 10 . Highest-Rated Ally 10 | . 10 . Total Orders . | . . . Ally Attacks . | . . . Total Damage . | . . . Kills . | . . . Allies Corrupted . | . . . Allies Melted . | . . . Intel | -11 -10 -10 ------- Run | Scr Mat Min Robot Analysis Total 6 | 1 4 1 Derelict Logs Recovered 2 | . . 2 Drone Launches . | . . . Drone Recoveries . | . . . Exploration | -11 -10 -10 ------------- Run | Scr Mat Min Turns Passed 9774 | 6911 2266 597 Spaces Moved 3043 | 1732 1003 308 Core 23 | 18 . 5 Treads . | . . . Legs 680 | . 377 303 Wheels 1869 | 1714 155 . Hover 471 | . 471 . Flight . | . . . Fastest Speed 50 | 50 80 50 Average Speed 88 | 79 95 118 Slowest Speed 120 | 80 120 120 Overloaded Moves . | . . . Propulsion Burnouts . | . . . Robots Hopped . | . . . Cave-ins Triggered . | . . . Exploration Rate (%) 66 | 40 97 63 Regions Visited 2 Branch Regions 1 Pre-discovered Areas 3 | . 2 1 Known Exits Taken . | . . . Unknown Exits Taken 2 | 1 1 . Scrap Searched . | . . . Spaces Dug . | . . . Terrain Destroyed 6 | 6 . . Melee . | . . . Projectile 6 | 6 . . AOE . | . . . Terrain Rammed . | . . . Walls Destroyed . | . . . Machines Disabled . | . . . Actions | -11 -10 -10 --------- Run | Scr Mat Min Total 9793 | 7112 2153 528 Wait 6122 | 4914 999 209 Move 3041 | 1731 1002 308 Hop . | . . . Pick Up . | . . . Fast Attach . | . . . Attach . | . . . Detach . | . . . Swap . | . . . Drop . | . . . Fire 213 | 50 152 11 Melee . | . . . Ram . | . . . Kick . | . . . Crush . | . . . Escape Stasis . | . . . Rewire . | . . . Trap . | . . . Miscellaneous 417 | 417 . . Route ------- -11/Scrapyard -10/Materials (discovered 5 exits: [*Mat x3] / *Min x2) -10/Mines (discovered 1 exit: [*Mat]) History --------- Turn | Location | Event 4 | -11/Scrapyard | Discovered new exit (range 13) 6912 | -11/Scrapyard | Entered Materials 6967 | -10/Materials | Discovered new exit (range 3) 6998 | -10/Materials | Discovered new exit (range 6) 8020 | -10/Materials | Discovered new exit (range 3) 8367 | -10/Materials | Discovered new exit (range 4) 8743 | -10/Materials | Discovered new exit (range 14) 9178 | -10/Materials | Entered Mines 9265 | -10/Mines | Learned location of 1 exit from Materials 9277 | -10/Mines | Core integrity fell below 50% 9361 | -10/Mines | Found the Drone Emporium 9481 | -10/Mines | Learned location of Storage (-8) 9595 | -10/Mines | Core integrity fell below 20% 9617 | -10/Mines | Discovered new exit (range 7) 9775 | -10/Mines | Destroyed by G-47 Trooper with Particle Gun Last Messages --------------- 09366_ K-01 Serf collects debris. 09371_ Released control of G-47 Trooper. 09377_ LA-LSN(g) suffers critical hit (Burn). 09379_ Machine disabled. 09379_ Took control of LA-LSN(g). 09379_ Extracted analysis data for Thug. 09380_ K-01 Serf collects debris. 09387_ G-47 Trooper destroyed. 09388_ K-01 Serf collects debris. 09391_ Acquired 17 Protomatter. 09393_ K-01 Serf collects debris. 09468_ System corrupted: Energy discharge (-36). 09481_ Acquired derelict log, extracted data. World map updated: -8/Storage. 09597_ G-47 Trooper suffers critical hit (Burn). 09599_ G-47 Trooper destroyed. 09601_ Acquired 22 Protomatter. 09617_ EXIT=FOUND 09628_ System corrupted: Component data lost. 09657_ K-01 Serf collects debris. Map ----- +----------------------------------------------------+ | ??????????????????????????????????????????? | | ??????????????????????????????????????????? | | ??????????????????????????????????????????? | | ??????????????????????????????????????????? | | ??????????????????????????????????????????? | | ??????????????????????????????????????????? | | ??????????????????????????????????????????? | | ??????????????????????????????????????????? | | ??????????????????????????????????????????? | | ??????????????????????????????????????????? | | ??????????????????????????????????????????? | | ??????????????????????????????????????????? | | ??????????????????????????????????????????? | | ??????????????????????????????????????????? | | ??????###?????????????????????????????????? | | ?????? ?????????????????????????????????? | | ?????? ?????????????????????????????????? | | ?????# #?????????????????????????????????? | | ?????# #?????????????????????????????????? | | ?????# #????????????###??????????????????? | | ?????# #???????????? ??????????????????? | | ?????# #???????????? ??????????????????? | | ?????# #????????????# #??????????????????? | | ????## ####?????????# #??????????????????? | | ????# #??######## #??????????????????? | | ????# """ #??# g g #??????????????????? | | ????# """ #### ########??????????????????? | | ????# """ #?????????????????????????? | | ????# ######?????????????????????????# | | ????# ####???????????????????????????# | | ????# < [=#???????????????????????????# | | ????# ## #????????????????????#??????# | | ????# ##!#####???????????????# ??????# | | ????#########= #??????????????? ??????# | | ????????????##### #??????????????? ?????## | | ????????????????# #??????????????# ?????# | | ????????????????# #??????????????# #????## | | ????????????????# #??????????????# #????# | | ?????????######?# #??????????????# #????# | | ????????## ### #?????????????? #???## | | ????????# ## #?#####????????# #??## | | ????????# ## ### ########## #?## | | ?????##### ### # | | ??#### ### ## | | ?## ### ###### ############## ##? | | ?# #?####????## ##????????????###?? | | ?# ##?????????# ##?????????????????? | | ?## ##????????# #??????????????????? | | ??# ####?????#% #??????????????????? | | ??# ###???# #??????????????????? | +----------------------------------------------------+ Best States ------------- Heat Dissipation 48 Energy Generation 23 Energy Capacity 200 Sight Range 16 Terrain Scan Range 16 Terrain Scan Density 10 Evasion (%) 55 Item Schematics ----------------- None Robot Schematics ------------------ None Fabricated ------------ Nothing Alien Tech Used ----------------- None Achievements -------------- None Challenges ------------ None Polymind | -11 -10 -10 ---------- Run | Scr Mat Min Hosts 6 | 1 3 2 Combat Hostiles 3 | . 2 1 Allies 1 | . . 1 Unique Host Classes 3 | 1 2 . Average Host Suspicion 56 | 41 97 87 Unsuspicious Activity 2089 | 2087 2 . Returns to Shadow . | . . . Fuzzy Dispatches . | . . . Protomatter Created 139 | . 88 51 Used 99 | 5 50 44 Decayed . | . . . Highest Spend 30 | 5 30 30 Top 5 Hosts by Kills: G-47 Trooper (-10/Materials: 19) G-47 Trooper (-10/Mines: 2) LA-LSN(g) (-10/Mines: 2) Game ------ Seed ConcussiveAluminumRail Manual? 0 Play Time 00:33:55 Cumulative 304.9 hours Start 2023.02.12 @ 16:49:58 End 2023.02.12 @ 17:21:29 Sessions 1 Manual Loads 0 Difficulty Rogue Special Mode Winter2022/Polymind Game No. 360 Rogue 360 Adventurer 0 Explorer 0 Win Type - Total 0 Types 0/0/0/0/0/0/0/0/0 Lore% 45 Gallery% 72 Achievement% 59 Wizard Run 0 Options --------- ASCII 0 Keyboard 0 Movement Mouse Keybinds 0 Fullscreen 2 Font 24/Smallcaps Map View 76x50 Tactical HUD 1 Map Filters NONE Filters NONE Steam 1 RUN: 238980f1-ee1d-443c-a94f-7bc090b42b8a